fUST/lending_fUST_20250505
["ID","MTS","AMOUNT","RATE_DAILY","PERIOD"]
[359936547,1746433844997,-400.0,0.00036164,14]
[359936548,1746433845007,-978.1,0.00036164,14]
[359936549,1746433845017,-400.0,0.00036164,14]
[359936550,1746433845026,-372.54,0.00036164,14]
[359936551,1746433845037,-400.0,0.00036164,14]
[359936552,1746433845046,-400.0,0.00036164,14]
[359936553,1746433845057,-400.0,0.00036164,14]
[359936554,1746433845066,-400.0,0.00036164,14]
[359936555,1746433845076,-400.0,0.00036164,14]
[359936556,1746433845085,-428.76,0.00036164,14]
[359936557,1746433845095,-400.0,0.00036164,14]
[359936558,1746433845105,-400.0,0.00036164,14]
[359936559,1746433845114,-400.0,0.00036164,14]
[359936560,1746433845123,-656.29,0.00036164,14]
[359936561,1746433845132,-334.18324841,0.00036164,14]
[359936562,1746433845142,-400.0,0.00036164,14]
[359936563,1746433845151,-400.0,0.00036164,14]
[359936564,1746433845160,-400.0,0.00036164,14]
[359936565,1746433845170,-560.2,0.00036164,14]
[359936566,1746433845180,-400.0,0.00036164,14]
[359936567,1746433845189,-400.0,0.00036164,14]
[359936568,1746433845199,-400.0,0.00036164,14]
[359936569,1746433845209,-870.5,0.00036164,14]
[359936570,1746433845218,-400.0,0.00036164,14]
[359936571,1746433845228,-400.0,0.00036164,14]
[359936572,1746433845238,-400.0,0.00036164,14]
[359936573,1746433845247,-400.0,0.00036164,14]
[359936574,1746433845257,-400.0,0.00036164,14]
[359936575,1746433845266,-430.80099196,0.00036164,14]
[359936576,1746433845276,-400.0,0.00036164,14]
[359936577,1746433845285,-400.0,0.00036164,14]
[359936578,1746433845295,-400.0,0.00036164,14]
[359936579,1746433845304,-400.0,0.00036164,14]
[359936580,1746433845316,-400.0,0.00036164,14]
[359936581,1746433845327,-400.0,0.00036164,14]
[359936582,1746433845337,-1153.45,0.00036164,14]
[359936583,1746433845347,-13080.82,0.00036164,14]
[359936584,1746433845358,-400.0,0.00036164,14]
[359936585,1746433845368,-400.0,0.00036164,14]
[359936586,1746433845378,-693.4,0.00036164,14]
[359936587,1746433845388,-400.0,0.00036164,14]
[359936588,1746433845398,-400.0,0.00036164,14]
[359936589,1746433845408,-400.0,0.00036164,14]
[359936590,1746433845418,-558.38,0.00036164,14]
[359936591,1746433845428,-4586.92,0.00036164,14]
[359936592,1746433845438,-356.19972416,0.00036164,14]
[359936593,1746433845451,-400.0,0.00036164,14]
[359936594,1746433845461,-421.05,0.00036164,14]
[359936595,1746433845471,-400.0,0.00036164,14]
[359936596,1746433845482,-400.0,0.00036164,14]
[359936597,1746433845496,-504.98,0.00036164,14]
[359936598,1746433845507,-510.06,0.00036164,14]
[359936599,1746433845518,-400.0,0.00036164,14]
[359936600,1746433845529,-1649.76,0.00036164,14]
[359936601,1746433845539,-400.0,0.00036164,14]
[359936602,1746433845549,-485.31,0.00036164,14]
[359936603,1746433845558,-549.56,0.00036164,14]
[359936604,1746433845568,-552.61,0.00036164,14]
[359936605,1746433845580,-322.17,0.00036164,14]
[359936606,1746433845590,-528.51,0.00036164,14]
[359936607,1746433845602,-400.0,0.00036164,14]
[359936608,1746433845613,-400.0,0.00036164,14]
[359936609,1746433845624,-400.0,0.00036164,14]
[359936610,1746433845637,-841.22,0.00036164,14]
[359936611,1746433845649,-400.0,0.00036164,14]
[359936612,1746433845660,-400.0,0.00036164,14]
[359936613,1746433845672,-400.0,0.00036164,14]
[359936614,1746433845685,-400.0,0.00036164,14]
[359936615,1746433845698,-1966.66,0.00036164,14]
[359936616,1746433845708,-400.0,0.00036164,14]
[359936617,1746433845717,-400.0,0.00036164,14]
[359936618,1746433845728,-400.0,0.00036164,14]
[359936619,1746433845738,-1415.32,0.00036164,14]
[359936620,1746433845748,-400.0,0.00036164,14]
[359936621,1746433845759,-644.99,0.00036164,14]
[359936622,1746433845770,-400.0,0.00036164,14]
[359936623,1746433845780,-400.0,0.00036164,14]
[359936624,1746433845790,-400.0,0.00036164,14]
[359936625,1746433845801,-400.0,0.00036164,14]
[359936626,1746433845812,-400.0,0.00036164,14]
[359936627,1746433845823,-400.0,0.00036164,14]
[359936628,1746433845835,-400.0,0.00036164,14]
[359936629,1746433845847,-1084.14,0.00036164,14]
[359936630,1746433845857,-1800.71,0.00036164,14]
[359936631,1746433845867,-400.0,0.00036164,14]
[359936632,1746433845877,-443.56,0.00036164,14]
[359936633,1746433845888,-456.05,0.00036164,14]
[359936634,1746433845899,-2261.32,0.00036164,14]
[359936636,1746433845909,-765.98,0.00036164,14]
[359936637,1746433845922,-400.0,0.00036164,14]
[359936639,1746433845934,-400.0,0.00036164,14]
[359936640,1746433845946,-1418.35,0.00036164,14]
[359936641,1746433845957,-400.0,0.00036164,14]
[359936642,1746433845967,-400.0,0.00036164,14]
[359936643,1746433846150,-400.0,0.00036164,14]
[359936644,1746433846161,-400.0,0.00036164,14]
[359936645,1746433846172,-502.49,0.00036164,14]
[359936647,1746433846183,-400.0,0.00036164,14]
[359936648,1746433846194,-2176.85,0.00036164,14]
[359936649,1746433846206,-8001.81,0.00036164,14]
[359936650,1746433846217,-400.0,0.00036164,14]
[359936651,1746433846228,-2550.52,0.00036164,14]
[359936652,1746433846238,-400.0,0.00036164,14]
[359936653,1746433846249,-400.0,0.00036164,14]
[359936654,1746433846260,-339.98397853,0.00036164,14]
[359936655,1746433846270,-281.64,0.00036164,14]
[359936656,1746433846282,-304.64405451,0.00036164,14]
[359936658,1746433846294,-400.0,0.00036164,14]
[359936659,1746433846304,-836.32,0.00036164,14]
[359936660,1746433846314,-497.19,0.00036164,14]
[359936661,1746433846323,-600.09,0.00036164,14]
[359936662,1746433846334,-400.0,0.00036164,14]
[359936663,1746433846345,-3565.36,0.00036164,14]
[359936664,1746433846355,-400.0,0.00036164,14]
[359936665,1746433846366,-1085.65,0.00036164,14]
[359936666,1746433846378,-400.0,0.00036164,14]
[359936667,1746433846388,-400.0,0.00036164,14]
[359936668,1746433846398,-3953.99,0.00036164,14]
[359936669,1746433846408,-400.0,0.00036164,14]
[359936670,1746433846419,-498.97,0.00036164,14]
[359936671,1746433846429,-400.0,0.00036164,14]
[359936672,1746433846440,-400.0,0.00036164,14]
[359936673,1746433846451,-400.0,0.00036164,14]
[359936674,1746433846462,-1247.13,0.00036164,14]
[359936675,1746433846473,-400.0,0.00036164,14]
[359936676,1746433846483,-400.0,0.00036164,14]
[359936677,1746433846493,-900.87,0.00036164,14]
[359936678,1746433846504,-400.0,0.00036164,14]
[359936679,1746433846515,-400.0,0.00036164,14]
[359936680,1746433846525,-433.07,0.00036164,14]
[359936681,1746433846536,-914.71,0.00036164,14]
[359936682,1746433846548,-1087.99,0.00036164,14]
[359936683,1746433846558,-988.34,0.00036164,14]
[359936684,1746433846570,-400.0,0.00036164,14]
[359936685,1746433846580,-701.78,0.00036164,14]
[359936686,1746433846591,-1571.53,0.00036164,2]
[359936687,1746433846602,-671.91,0.00036164,14]
[359936688,1746433846612,-1836.17,0.00036164,14]
[359936689,1746433846623,-400.0,0.00036164,14]
[359936690,1746433846633,-400.0,0.00036164,14]
[359936691,1746433846643,-151.0,0.000362,18]
[359936692,1746433846655,-151.0,0.000363,15]
[359936693,1746433846665,-151.0,0.000364,10]
[359936694,1746433846677,-151.0,0.000364,12]
[359936695,1746433846687,-601.72954908,0.00036418,3]
[359936696,1746433846698,-1203.45909816,0.00036428,3]
[359936697,1746433846709,-400.0,0.00036438,14]
[359936698,1746433846719,-658.66,0.00036438,14]
[359936699,1746433846730,-400.0,0.00036438,14]
[359936700,1746433846742,-533.35,0.00036438,14]
[359936701,1746433846752,-400.0,0.00036438,14]
[359936702,1746433846763,-400.0,0.00036438,14]
[359936703,1746433846773,-400.0,0.00036438,14]
[359936704,1746433846783,-400.0,0.00036438,14]
[359936705,1746433846793,-978.1,0.00036438,14]
[359936706,1746433846803,-400.0,0.00036438,14]
[359936707,1746433846813,-400.0,0.00036438,14]
[359936708,1746433846825,-400.0,0.00036438,14]
[359936709,1746433846838,-400.0,0.00036438,14]
[359936710,1746433846848,-400.0,0.00036438,14]
[359936711,1746433846857,-400.0,0.00036438,14]
[359936712,1746433846867,-428.76,0.00036438,14]
[359936713,1746433846876,-400.0,0.00036438,14]
[359936714,1746433846893,-400.0,0.00036438,14]
[359936715,1746433846907,-400.0,0.00036438,14]
[359936716,1746433846918,-656.29,0.00036438,14]
[359936717,1746433846928,-400.0,0.00036438,14]
[359936718,1746433846939,-400.0,0.00036438,14]
[359936719,1746433846948,-400.0,0.00036438,14]
[359936720,1746433846958,-560.2,0.00036438,14]
[359936721,1746433846968,-400.0,0.00036438,14]
[359936722,1746433846978,-400.0,0.00036438,14]
[359936723,1746433846987,-400.0,0.00036438,14]
[359936724,1746433846998,-870.5,0.00036438,14]
[359936725,1746433847008,-400.0,0.00036438,14]
[359936726,1746433847017,-400.0,0.00036438,14]
[359936727,1746433847027,-400.0,0.00036438,14]
[359936728,1746433847037,-400.0,0.00036438,14]
[359936729,1746433847047,-400.0,0.00036438,14]
[359936730,1746433847057,-400.0,0.00036438,14]
[359936731,1746433847068,-400.0,0.00036438,14]
[359936732,1746433847078,-400.0,0.00036438,14]
[359936733,1746433847088,-400.0,0.00036438,14]
[359936734,1746433847098,-400.0,0.00036438,14]
[359936735,1746433847108,-1153.45,0.00036438,14]
[359936736,1746433847118,-13080.82,0.00036438,14]
[359936737,1746433847127,-400.0,0.00036438,14]
[359936738,1746433847137,-693.4,0.00036438,14]
[359936739,1746433847147,-400.0,0.00036438,14]
[359936740,1746433847156,-400.0,0.00036438,14]
[359936741,1746433847166,-400.0,0.00036438,14]
[359936742,1746433847177,-558.38,0.00036438,14]
[359936743,1746433847187,-4586.92,0.00036438,14]
[359936744,1746433847196,-400.0,0.00036438,14]
[359936745,1746433847206,-421.05,0.00036438,14]
[359936746,1746433847215,-400.0,0.00036438,14]
[359936747,1746433847225,-504.98,0.00036438,14]
[359936748,1746433847235,-510.06,0.00036438,14]
[359936749,1746433847244,-400.0,0.00036438,14]
[359936750,1746433847254,-1649.76,0.00036438,14]
[359936751,1746433847263,-400.0,0.00036438,14]
[359936752,1746433847272,-485.31,0.00036438,14]
[359936753,1746433847282,-549.56,0.00036438,14]
[359936754,1746433847292,-552.61,0.00036438,14]
[359936755,1746433847301,-528.51,0.00036438,14]
[359936756,1746433847312,-400.0,0.00036438,14]
[359936757,1746433847322,-400.0,0.00036438,14]
[359936758,1746433847332,-400.0,0.00036438,14]
[359936759,1746433847341,-841.22,0.00036438,14]
[359936760,1746433847351,-400.0,0.00036438,14]
[359936761,1746433847361,-400.0,0.00036438,14]
[359936762,1746433847371,-1966.66,0.00036438,14]
[359936763,1746433847382,-400.0,0.00036438,14]
[359936764,1746433847391,-400.0,0.00036438,14]
[359936765,1746433847401,-400.0,0.00036438,14]
[359936766,1746433847410,-1415.32,0.00036438,14]
[359936767,1746433847421,-400.0,0.00036438,14]
[359936768,1746433847432,-644.99,0.00036438,14]
[359936769,1746433847442,-400.0,0.00036438,14]
[359936770,1746433847452,-400.0,0.00036438,14]
[359936771,1746433847462,-400.0,0.00036438,14]
[359936772,1746433847472,-400.0,0.00036438,14]
[359936773,1746433847482,-1084.14,0.00036438,14]
[359936774,1746433847492,-1800.71,0.00036438,14]
[359936775,1746433847502,-400.0,0.00036438,14]
[359936776,1746433847512,-443.56,0.00036438,14]
[359936777,1746433847522,-456.05,0.00036438,14]
[359936778,1746433847532,-2261.32,0.00036438,14]
[359936779,1746433847542,-765.98,0.00036438,14]
[359936780,1746433847552,-400.0,0.00036438,14]
[359936781,1746433847561,-1418.35,0.00036438,14]
[359936782,1746433847571,-400.0,0.00036438,14]
[359936783,1746433847581,-400.0,0.00036438,14]
[359936784,1746433847591,-400.0,0.00036438,14]
[359936785,1746433847600,-502.49,0.00036438,14]
[359936786,1746433847610,-2176.85,0.00036438,14]
[359936787,1746433847620,-8001.81,0.00036438,14]
[359936788,1746433847630,-2550.52,0.00036438,14]
[359936789,1746433847640,-493.64,0.00036438,14]
[359936790,1746433847650,-400.0,0.00036438,14]
[359936791,1746433847659,-400.0,0.00036438,14]
[359936792,1746433847669,-836.32,0.00036438,14]
[359936793,1746433847679,-497.19,0.00036438,14]
[359936794,1746433847689,-600.09,0.00036438,14]
[359936795,1746433847698,-3565.36,0.00036438,14]
[359936796,1746433847708,-400.0,0.00036438,14]
[359936797,1746433847718,-1085.65,0.00036438,14]
[359936798,1746433847727,-400.0,0.00036438,14]
[359936799,1746433847737,-3953.99,0.00036438,14]
[359936800,1746433847746,-400.0,0.00036438,14]
[359936801,1746433847756,-498.97,0.00036438,14]
[359936802,1746433847766,-400.0,0.00036438,14]
[359936803,1746433847776,-400.0,0.00036438,14]
[359936804,1746433847785,-400.0,0.00036438,14]
[359936805,1746433847796,-1247.13,0.00036438,14]
[359936806,1746433847805,-400.0,0.00036438,14]
[359936807,1746433847815,-400.0,0.00036438,14]
[359936808,1746433847825,-900.87,0.00036438,14]
[359936809,1746433847837,-400.0,0.00036438,14]
[359936810,1746433847847,-400.0,0.00036438,14]
[359936811,1746433847857,-433.07,0.00036438,14]
[359936812,1746433847867,-914.71,0.00036438,14]
[359936813,1746433847876,-1087.99,0.00036438,14]
[359936814,1746433847886,-988.34,0.00036438,14]
[359936815,1746433847895,-400.0,0.00036438,14]
[359936816,1746433847906,-701.78,0.00036438,14]
[359936817,1746433847920,-1571.53,0.00036438,2]
[359936818,1746433847930,-671.91,0.00036438,14]
[359936819,1746433847940,-1836.17,0.00036438,14]
[359936820,1746433847950,-400.0,0.00036438,14]
[359936821,1746433847963,-400.0,0.00036438,14]
[359936822,1746433847973,-151.0,0.000366,16]
[359936823,1746433847983,-3714.31,0.000366,30]
[359936824,1746433847994,-1438.73,0.000366,7]
[359936825,1746433848004,-160.0,0.00036602,4]
[359936826,1746433848013,-600.0,0.0003663,60]
[359936827,1746433848023,-151.0,0.000367,12]
[359936828,1746433848033,-400.0,0.00036712,14]
[359936829,1746433848043,-658.66,0.00036712,14]
[359936830,1746433848053,-400.0,0.00036712,14]
[359936831,1746433848062,-533.35,0.00036712,14]
[359936832,1746433848072,-400.0,0.00036712,14]
[359936833,1746433848082,-400.0,0.00036712,14]
[359936834,1746433848092,-400.0,0.00036712,14]
[359936835,1746433848102,-400.0,0.00036712,14]
[359936836,1746433848112,-978.1,0.00036712,14]
[359936837,1746433848122,-400.0,0.00036712,14]
[359936838,1746433848132,-428.27645219,0.00036712,14]
[359936839,1746433848142,-400.0,0.00036712,14]
[359936840,1746433848151,-333.85277858,0.00036712,14]
[359936841,1746433848161,-400.0,0.00036712,14]
[359936842,1746433848172,-235.94,0.00036712,14]
[359936843,1746433848182,-428.76,0.00036712,14]
[359936844,1746433848192,-400.0,0.00036712,14]
[359936845,1746433848202,-400.0,0.00036712,14]
[359936846,1746433848213,-400.0,0.00036712,14]
[359936847,1746433848224,-656.29,0.00036712,14]
[359936848,1746433848234,-400.0,0.00036712,14]
[359936849,1746433848244,-400.0,0.00036712,14]
[359936850,1746433848254,-560.2,0.00036712,14]
[359936851,1746433848264,-400.0,0.00036712,14]
[359936852,1746433848273,-400.0,0.00036712,14]
[359936853,1746433848284,-400.0,0.00036712,14]
[359936854,1746433848294,-870.5,0.00036712,14]
[359936855,1746433848303,-400.0,0.00036712,14]
[359936856,1746433848313,-400.0,0.00036712,14]
[359936857,1746433848323,-400.0,0.00036712,14]
[359936858,1746433848333,-400.0,0.00036712,14]
[359936859,1746433848343,-400.0,0.00036712,14]
[359936860,1746433848352,-400.0,0.00036712,14]
[359936861,1746433848363,-400.0,0.00036712,14]
[359936862,1746433848372,-400.0,0.00036712,14]
[359936863,1746433848382,-400.0,0.00036712,14]
[359936864,1746433848391,-400.0,0.00036712,14]
[359936865,1746433848403,-1153.45,0.00036712,14]
[359936866,1746433848414,-13080.82,0.00036712,14]
[359936867,1746433848424,-198.38343383,0.00036712,14]
[359936868,1746433848434,-693.4,0.00036712,14]
[359936869,1746433848445,-400.0,0.00036712,14]
[359936870,1746433848455,-375.90537472,0.00036712,14]
[359936871,1746433848467,-400.0,0.00036712,14]
[359936872,1746433848478,-558.38,0.00036712,14]
[359936873,1746433848489,-4586.92,0.00036712,14]
[359936874,1746433848499,-400.0,0.00036712,14]
[359936875,1746433848509,-421.05,0.00036712,14]
[359936876,1746433848519,-400.0,0.00036712,14]
[359936877,1746433848528,-504.98,0.00036712,14]
[359936878,1746433848538,-510.06,0.00036712,14]
[359936879,1746433848548,-1649.76,0.00036712,14]
[359936880,1746433848558,-400.0,0.00036712,14]
[359936881,1746433848568,-400.0,0.00036712,14]
[359936882,1746433848578,-485.31,0.00036712,14]
[359936883,1746433848589,-549.56,0.00036712,14]
[359936884,1746433848599,-552.61,0.00036712,14]
[359936885,1746433848610,-528.51,0.00036712,14]
[359936886,1746433848620,-400.0,0.00036712,14]
[359936887,1746433848631,-400.0,0.00036712,14]
[359936888,1746433848642,-400.0,0.00036712,14]
[359936889,1746433848653,-841.22,0.00036712,14]
[359936890,1746433848664,-400.0,0.00036712,14]
[359936891,1746433848675,-400.0,0.00036712,14]
[359936892,1746433848685,-1966.66,0.00036712,14]
[359936893,1746433848695,-400.0,0.00036712,14]
[359936894,1746433848705,-400.0,0.00036712,14]
[359936895,1746433848715,-400.0,0.00036712,14]
[359936896,1746433848725,-1415.32,0.00036712,14]
[359936897,1746433848735,-400.0,0.00036712,14]
[359936898,1746433848745,-644.99,0.00036712,14]
[359936899,1746433848755,-400.0,0.00036712,14]
[359936900,1746433848765,-400.0,0.00036712,14]
[359936901,1746433848775,-400.0,0.00036712,14]
[359936902,1746433848786,-400.0,0.00036712,14]
[359936903,1746433848796,-1084.14,0.00036712,14]
[359936904,1746433848806,-1800.71,0.00036712,14]
[359936905,1746433848817,-400.0,0.00036712,14]
[359936906,1746433848830,-443.56,0.00036712,14]
[359936907,1746433848840,-456.05,0.00036712,14]
[359936908,1746433848850,-2261.32,0.00036712,14]
[359936909,1746433848860,-765.98,0.00036712,14]
[359936910,1746433848871,-400.0,0.00036712,14]
[359936911,1746433848882,-1418.35,0.00036712,14]
[359936912,1746433848892,-400.0,0.00036712,14]
[359936913,1746433848903,-400.0,0.00036712,14]
[359936914,1746433848914,-400.0,0.00036712,14]
[359936915,1746433848924,-502.49,0.00036712,14]
[359936916,1746433848934,-2176.85,0.00036712,14]
[359936917,1746433848944,-8001.81,0.00036712,14]
[359936918,1746433848954,-2550.52,0.00036712,14]
[359936919,1746433848964,-400.0,0.00036712,14]
[359936920,1746433848974,-400.0,0.00036712,14]
[359936921,1746433848984,-836.32,0.00036712,14]
[359936922,1746433848993,-497.19,0.00036712,14]
[359936923,1746433849003,-600.09,0.00036712,14]
[359936924,1746433849013,-3565.36,0.00036712,14]
[359936925,1746433849024,-400.0,0.00036712,14]
[359936926,1746433849034,-1085.65,0.00036712,14]
[359936927,1746433849045,-400.0,0.00036712,14]
[359936928,1746433849055,-3953.99,0.00036712,14]
[359936929,1746433849064,-400.0,0.00036712,14]
[359936930,1746433849075,-498.97,0.00036712,14]
[359936931,1746433849086,-400.0,0.00036712,14]
[359936932,1746433849096,-400.0,0.00036712,14]
[359936933,1746433849106,-400.0,0.00036712,14]
[359936934,1746433849116,-1247.13,0.00036712,14]
[359936935,1746433849126,-328.42075115,0.00036712,14]
[359936936,1746433849318,-400.0,0.00036712,14]
[359936937,1746433849330,-900.87,0.00036712,14]
[359936938,1746433849340,-400.0,0.00036712,14]
[359936939,1746433849350,-400.0,0.00036712,14]
[359936940,1746433849360,-433.07,0.00036712,14]
[359936941,1746433849370,-914.71,0.00036712,14]
[359936942,1746433849379,-1087.99,0.00036712,14]
[359936943,1746433849389,-988.34,0.00036712,14]
[359936944,1746433849398,-400.0,0.00036712,14]
[359936945,1746433849408,-701.78,0.00036712,14]
[359936946,1746433849418,-1571.53,0.00036712,2]
[359936947,1746433849428,-671.91,0.00036712,14]
[359936948,1746433849438,-1836.17,0.00036712,14]
[359936949,1746433849448,-400.0,0.00036712,14]
[359936950,1746433849458,-336.57541213,0.00036712,14]
[359936951,1746433849467,-1000.0,0.00036712,4]
[359936952,1746433849477,-151.0,0.00036739,14]
[359936953,1746433849487,-151.0,0.00036739,14]
[359936954,1746433849496,-151.0,0.00036739,14]
[359936955,1746433849507,-264.41960271,0.00036766,14]
[359936956,1746433849517,-5000.0,0.00036798,2]
[359936957,1746433849526,-252.82254587,0.00036873,5]
[359936958,1746433849536,-500.0,0.00036873,5]
[359936959,1746433849545,-500.0,0.00036873,5]
[359936960,1746433849555,-500.0,0.00036873,5]
[359936961,1746433849564,-151.0,0.00036886,14]
[359936962,1746433849574,-151.0,0.00036886,14]
[359936963,1746433849584,-151.0,0.00036886,14]
[359936964,1746433849594,-159.791176,0.00036886,14]
[359936965,1746433849604,-151.0,0.00036886,14]
[359936966,1746433849614,-243.164758,0.00036886,14]
[359936967,1746433849624,-151.0,0.00036886,14]
[359936968,1746433849634,-243.164758,0.00036886,14]
[359936969,1746433849643,-151.0,0.00036886,14]
[359936970,1746433849653,-286.791419,0.00036886,14]
[359936971,1746433849663,-286.791419,0.00036886,14]
[359936972,1746433849672,-1420.947937,0.00036886,2]
[359936974,1746433849681,-1420.947937,0.00036886,2]
[359936975,1746433849691,-151.0,0.00036886,14]
[359936976,1746433849701,-370000.0,0.00036886,2]
[359936977,1746433849711,-151.0,0.000369,17]
[359936978,1746433849720,-875.76,0.000369,30]
[359936979,1746433849730,-544.78529576,0.00036968,2]
[359936980,1746433849740,-409.95385558,0.00036985,10]
[359936981,1746433849750,-400.0,0.00036986,14]
[359936982,1746433849760,-658.66,0.00036986,14]
[359936983,1746433849769,-400.0,0.00036986,14]
[359936984,1746433849780,-533.35,0.00036986,14]
[359936985,1746433849789,-400.0,0.00036986,14]
[359936986,1746433849799,-400.0,0.00036986,14]
[359936987,1746433849808,-400.0,0.00036986,14]
[359936988,1746433849817,-333.41525826,0.00036986,14]
[359936989,1746433849827,-978.1,0.00036986,14]
[359936990,1746433849838,-400.0,0.00036986,14]
[359936991,1746433849848,-400.0,0.00036986,14]
[359936992,1746433849858,-400.0,0.00036986,14]
[359936993,1746433849867,-428.76,0.00036986,14]
[359936994,1746433849876,-400.0,0.00036986,14]
[359936995,1746433849884,-400.0,0.00036986,14]
[359936996,1746433849894,-400.0,0.00036986,14]
[359936997,1746433849904,-656.29,0.00036986,14]
[359936998,1746433849915,-151.0,0.00036986,14]
[359936999,1746433849924,-151.0,0.00036986,14]
[359937000,1746433849933,-151.0,0.00036986,14]
[359937001,1746433849944,-151.0,0.00036986,14]
[359937002,1746433849955,-151.0,0.00036986,14]
[359937003,1746433849965,-400.0,0.00036986,14]
[359937004,1746433849976,-560.2,0.00036986,14]
[359937005,1746433849986,-400.0,0.00036986,14]
[359937006,1746433849995,-400.0,0.00036986,14]
[359937007,1746433850004,-151.0,0.00036986,14]
[359937008,1746433850013,-151.0,0.00036986,14]
[359937009,1746433850023,-400.0,0.00036986,14]
[359937010,1746433850032,-870.5,0.00036986,14]
[359937011,1746433850042,-151.0,0.00036986,14]
[359937012,1746433850051,-400.0,0.00036986,14]
[359937013,1746433850061,-151.0,0.00036986,14]
[359937014,1746433850070,-153.414632,0.00036986,14]
[359937015,1746433850079,-400.0,0.00036986,14]
[359937016,1746433850089,-400.0,0.00036986,14]
[359937017,1746433850098,-400.0,0.00036986,14]
[359937018,1746433850106,-400.0,0.00036986,14]
[359937019,1746433850116,-151.0,0.00036986,14]
[359937020,1746433850125,-151.0,0.00036986,14]
[359937021,1746433850134,-151.0,0.00036986,14]
[359937022,1746433850143,-400.0,0.00036986,14]
[359937023,1746433850153,-399.15,0.00036986,14]
[359937024,1746433850162,-400.0,0.00036986,14]
[359937025,1746433850171,-400.0,0.00036986,14]
[359937026,1746433850180,-400.0,0.00036986,14]
[359937027,1746433850190,-1153.45,0.00036986,14]
[359937028,1746433850202,-13080.82,0.00036986,14]
[359937029,1746433850211,-693.4,0.00036986,14]
[359937030,1746433850222,-400.0,0.00036986,14]
[359937031,1746433850232,-151.0,0.00036986,14]
[359937032,1746433850241,-400.0,0.00036986,14]
[359937033,1746433850251,-151.0,0.00036986,14]
[359937034,1746433850260,-558.38,0.00036986,14]
[359937035,1746433850270,-4586.92,0.00036986,14]
[359937036,1746433850281,-400.0,0.00036986,14]
[359937037,1746433850292,-204.612992,0.00036986,14]
[359937038,1746433850301,-421.05,0.00036986,14]
[359937039,1746433850311,-400.0,0.00036986,14]
[359937040,1746433850321,-504.98,0.00036986,14]
[359937041,1746433850331,-510.06,0.00036986,14]
[359937042,1746433850342,-1649.76,0.00036986,14]
[359937043,1746433850353,-400.0,0.00036986,14]
[359937044,1746433850364,-485.31,0.00036986,14]
[359937045,1746433850374,-198.17016406,0.00036986,14]
[359937046,1746433850384,-549.56,0.00036986,14]
[359937047,1746433850395,-552.61,0.00036986,14]
[359937048,1746433850405,-528.51,0.00036986,14]
[359937049,1746433850415,-400.0,0.00036986,14]
[359937050,1746433850425,-325.6496789,0.00036986,14]
[359937051,1746433850435,-400.0,0.00036986,14]